lending/lending_fUSD_20250130
["ID","MTS","AMOUNT","RATE_DAILY","PERIOD"]
[350983937,1738266655396,-750.29,0.00019315,3]
[350983938,1738266655406,-218.11048405,0.00019315,3]
[350983939,1738266655417,-500.0,0.00019315,3]
[350983940,1738266655429,-839.38,0.00019315,3]
[350983941,1738266655439,-500.0,0.00019315,3]
[350983942,1738266655449,-500.0,0.00019315,3]
[350983943,1738266655460,-1308.7,0.00019315,3]
[350983944,1738266655470,-500.0,0.00019315,3]
[350983945,1738266655479,-500.0,0.00019315,3]
[350983946,1738266655489,-1556.53,0.00019315,3]
[350983947,1738266655500,-500.0,0.00019315,3]
[350983948,1738266655510,-500.0,0.00019315,3]
[350983949,1738266655520,-500.0,0.00019315,3]
[350983950,1738266655530,-688.39,0.00019315,3]
[350983951,1738266655541,-2804.8,0.00019315,3]
[350983952,1738266655551,-500.0,0.00019315,3]
[350983953,1738266655561,-500.0,0.00019315,3]
[350983954,1738266655572,-500.0,0.00019315,3]
[350983955,1738266655582,-500.0,0.00019315,3]
[350983956,1738266655592,-844.17,0.00019315,3]
[350983957,1738266655602,-500.0,0.00019315,3]
[350983958,1738266655613,-500.0,0.00019315,3]
[350983959,1738266655623,-500.0,0.00019315,3]
[350983960,1738266655633,-1601.15,0.00019315,3]
[350983961,1738266655643,-879.87,0.00019315,3]
[350983962,1738266655653,-2408.3,0.00019315,3]
[350983963,1738266655664,-500.0,0.00019315,3]
[350983964,1738266655674,-500.0,0.00019315,3]
[350983965,1738266655685,-841.32,0.00019315,3]
[350983966,1738266655695,-500.0,0.00019315,3]
[350983967,1738266655705,-500.0,0.00019315,3]
[350983968,1738266655717,-151.0,0.00019315,2]
[350983969,1738266655727,-500.0,0.00019315,3]
[350983970,1738266655737,-151.0,0.00019315,2]
[350983971,1738266655747,-500.0,0.00019315,3]
[350983972,1738266655758,-1244.46,0.00019315,3]
[350983973,1738266655768,-500.0,0.00019315,3]
[350983974,1738266655779,-906.27,0.00019315,3]
[350983975,1738266655790,-500.0,0.00019315,3]
[350983976,1738266655799,-501.95423929,0.00019315,3]
[350983977,1738266655809,-2144.96,0.00019315,3]
[350983978,1738266655819,-500.0,0.00019315,3]
[350983979,1738266655829,-500.0,0.00019315,3]
[350983980,1738266655839,-3158.28,0.00019315,3]
[350983981,1738266655850,-487.97002988,0.00019315,3]
[350983982,1738266655860,-1527.98,0.00019315,3]
[350983983,1738266655870,-1118.75,0.00019315,3]
[350983984,1738266655880,-2125.92,0.00019315,3]
[350983985,1738266655891,-500.0,0.00019315,3]
[350983986,1738266655901,-512.55812042,0.00019315,3]
[350983987,1738266655911,-500.0,0.00019315,3]
[350983988,1738266655922,-500.0,0.00019315,3]
[350983989,1738266655933,-737.71,0.00019315,3]
[350983990,1738266655944,-509.78938882,0.00019315,3]
[350983991,1738266655954,-1688.98,0.00019315,3]
[350983992,1738266655966,-500.0,0.00019315,3]
[350983993,1738266655976,-500.0,0.00019315,3]
[350983994,1738266655987,-500.0,0.00019315,3]
[350983995,1738266655998,-912.38,0.00019315,3]
[350983996,1738266656008,-500.0,0.00019315,3]
[350983997,1738266656019,-500.0,0.00019315,3]
[350983998,1738266656029,-500.0,0.00019315,3]
[350983999,1738266656039,-1021.2,0.00019315,3]
[350984000,1738266656050,-522.27656977,0.00019315,3]
[350984001,1738266656061,-886.82,0.00019315,3]
[350984002,1738266656071,-500.0,0.00019315,3]
[350984003,1738266656082,-2327.44,0.00019315,3]
[350984004,1738266656092,-500.0,0.00019315,3]
[350984005,1738266656103,-1149.61,0.00019315,3]
[350984006,1738266656112,-500.0,0.00019315,3]
[350984007,1738266656123,-151.0,0.00019315,2]
[350984008,1738266656135,-151.0,0.00019315,2]
[350984009,1738266656145,-500.0,0.00019315,3]
[350984010,1738266656156,-500.0,0.00019315,3]
[350984011,1738266656166,-486.23270994,0.00019315,3]
[350984012,1738266656176,-500.0,0.00019315,3]
[350984013,1738266656186,-724.75,0.00019315,3]
[350984014,1738266656197,-500.0,0.00019315,3]
[350984015,1738266656208,-1171.72,0.00019315,3]
[350984016,1738266656218,-512.09554447,0.00019315,3]
[350984017,1738266656229,-151.0,0.00019315,2]
[350984018,1738266656240,-575.11,0.00019315,3]
[350984019,1738266656250,-500.0,0.00019315,3]
[350984020,1738266656261,-151.0,0.00019315,2]
[350984021,1738266656271,-1374.92,0.00019315,3]
[350984022,1738266656282,-924.07,0.00019315,3]
[350984023,1738266656292,-500.0,0.00019315,3]
[350984024,1738266656303,-689.33,0.00019315,3]
[350984025,1738266656313,-2750.94,0.00019315,3]
[350984026,1738266656323,-500.0,0.00019315,3]
[350984027,1738266656333,-500.0,0.00019315,3]
[350984028,1738266656346,-500.0,0.00019315,3]
[350984029,1738266656356,-386.00143607,0.00019315,3]
[350984030,1738266656366,-1015.37,0.00019315,3]
[350984031,1738266656376,-697.17,0.00019315,3]
[350984032,1738266656387,-500.0,0.00019315,3]
[350984033,1738266656397,-500.0,0.00019315,3]
[350984034,1738266656407,-1677.15,0.00019315,3]
[350984035,1738266656419,-500.0,0.00019315,3]
[350984036,1738266656429,-1297.88,0.00019315,3]
[350984037,1738266656439,-7494.66,0.00019315,3]
[350984038,1738266656449,-500.0,0.00019315,3]
[350984039,1738266656459,-500.0,0.00019315,3]
[350984040,1738266656469,-500.0,0.00019315,3]
[350984041,1738266656480,-1079.28,0.00019315,3]
[350984042,1738266656491,-500.0,0.00019315,3]
[350984043,1738266656500,-500.0,0.00019315,3]
[350984044,1738266656510,-500.0,0.00019315,3]
[350984045,1738266656523,-969.62,0.00019315,3]
[350984046,1738266656533,-500.0,0.00019315,3]
[350984047,1738266656543,-500.0,0.00019315,3]
[350984048,1738266656554,-640.34,0.00019315,3]
[350984049,1738266656563,-500.0,0.00019315,3]
[350984050,1738266656574,-517.60989187,0.00019315,3]
[350984051,1738266656583,-151.0,0.00019315,2]
[350984052,1738266656593,-1398.28,0.00019315,3]
[350984053,1738266656603,-151.0,0.00019315,2]
[350984054,1738266656613,-7134.96,0.00019315,3]
[350984055,1738266656623,-500.0,0.00019315,3]
[350984056,1738266656633,-500.0,0.00019315,3]
[350984057,1738266656643,-500.0,0.00019315,3]
[350984058,1738266656655,-500.0,0.00019315,3]
[350984059,1738266656665,-500.0,0.00019315,3]
[350984060,1738266656675,-1683.19,0.00019315,3]
[350984061,1738266656687,-500.0,0.00019315,3]
[350984062,1738266656895,-1929.4,0.00019315,3]
[350984063,1738266656907,-500.0,0.00019315,3]
[350984064,1738266656918,-1906.21,0.00019315,3]
[350984065,1738266656928,-502.38475245,0.00019315,3]
[350984066,1738266656938,-1341.08,0.00019315,3]
[350984067,1738266656949,-624.99,0.00019315,3]
[350984068,1738266656959,-500.0,0.00019315,3]
[350984069,1738266656968,-500.0,0.00019315,3]
[350984070,1738266656977,-2251.26,0.00019315,3]
[350984071,1738266656988,-1548.84,0.00019315,3]
[350984072,1738266656998,-508.50364048,0.00019315,3]
[350984073,1738266657007,-1832.4,0.00019315,3]
[350984074,1738266657017,-500.0,0.00019315,3]
[350984075,1738266657028,-151.0,0.00019315,2]
[350984076,1738266657038,-1015.28,0.00019315,3]
[350984077,1738266657048,-151.0,0.00019315,2]
[350984078,1738266657060,-2260.53,0.00019315,3]
[350984079,1738266657070,-500.0,0.00019315,3]
[350984080,1738266657079,-500.0,0.00019315,3]
[350984081,1738266657088,-500.0,0.00019315,3]
[350984082,1738266657097,-500.0,0.00019315,3]
[350984083,1738266657106,-151.0,0.00019315,2]
[350984084,1738266657115,-151.0,0.00019315,2]
[350984085,1738266657125,-151.0,0.00019315,2]
[350984086,1738266657134,-151.0,0.00019315,2]
[350984087,1738266657143,-500.0,0.00019315,3]
[350984088,1738266657153,-755.76,0.00019315,3]
[350984089,1738266657162,-1532.01,0.00019315,3]
[350984090,1738266657171,-1298.5,0.00019315,3]
[350984091,1738266657180,-662.79,0.00019315,3]
[350984092,1738266657189,-2524.85,0.00019315,3]
[350984093,1738266657198,-500.0,0.00019315,3]
[350984094,1738266657207,-1750.83,0.00019315,3]
[350984095,1738266657217,-151.0,0.00019315,2]
[350984096,1738266657226,-151.0,0.00019315,2]
[350984097,1738266657235,-1134.85,0.00019315,3]
[350984098,1738266657244,-730.29,0.00019315,3]
[350984099,1738266657254,-500.0,0.00019315,3]
[350984100,1738266657263,-500.0,0.00019315,3]
[350984101,1738266657272,-500.0,0.00019315,3]
[350984102,1738266657281,-500.0,0.00019315,3]
[350984103,1738266657290,-667.49,0.00019315,3]
[350984104,1738266657299,-500.0,0.00019315,3]
[350984105,1738266657308,-7059.23,0.00019315,3]
[350984106,1738266657318,-6077.22,0.00019315,3]
[350984107,1738266657328,-3187.09,0.00019315,3]
[350984108,1738266657339,-151.0,0.00019315,2]
[350984109,1738266657350,-500.0,0.00019315,3]
[350984110,1738266657359,-151.0,0.00019315,2]
[350984111,1738266657369,-2163.9,0.00019315,3]
[350984112,1738266657379,-2618.25,0.00019315,3]
[350984113,1738266657391,-823.41,0.00019315,3]
[350984114,1738266657399,-3134.08,0.00019315,3]
[350984115,1738266657409,-500.0,0.00019315,3]
[350984116,1738266657420,-22963.18,0.00019315,3]
[350984117,1738266657432,-500.0,0.00019315,3]
[350984118,1738266657443,-500.0,0.00019315,3]
[350984119,1738266657454,-811.39,0.00019315,3]
[350984120,1738266657463,-500.0,0.00019315,3]
[350984121,1738266657473,-1603.65,0.00019315,3]
[350984122,1738266657482,-1106.15,0.00019315,3]
[350984123,1738266657492,-500.0,0.00019315,3]
[350984124,1738266657501,-500.0,0.00019315,3]
[350984125,1738266657510,-583.81,0.00019315,3]
[350984126,1738266657520,-778.32,0.00019315,3]
[350984127,1738266657530,-500.0,0.00019315,3]
[350984128,1738266657539,-500.0,0.00019315,3]
[350984129,1738266657548,-1430.53,0.00019315,3]
[350984130,1738266657557,-1059.93,0.00019315,3]
[350984131,1738266657567,-151.0,0.00019315,2]
[350984132,1738266657576,-500.0,0.00019315,3]
[350984133,1738266657585,-151.0,0.00019315,2]
[350984134,1738266657595,-500.0,0.00019315,3]
[350984135,1738266657605,-1232.01,0.00019315,3]
[350984136,1738266657614,-500.0,0.00019315,3]
[350984137,1738266657624,-3230.61,0.00019315,3]
[350984138,1738266657633,-1246.52,0.00019315,3]
[350984139,1738266657642,-151.0,0.00019315,2]
[350984140,1738266657651,-151.0,0.00019315,2]
[350984141,1738266657661,-569.2,0.00019315,3]
[350984142,1738266657670,-955.93,0.00019315,3]
[350984143,1738266657679,-500.0,0.00019315,3]
[350984144,1738266657688,-500.0,0.00019315,3]
[350984145,1738266657697,-5999.94,0.00019315,3]
[350984146,1738266657705,-1604.74,0.00019315,3]
[350984147,1738266657714,-730.56,0.00019315,3]
[350984148,1738266657723,-500.0,0.00019315,3]
[350984149,1738266657732,-511.77444824,0.00019315,3]
[350984150,1738266657742,-2801.07,0.00019315,3]
[350984151,1738266657751,-728.05,0.00019315,3]
[350984152,1738266657761,-500.0,0.00019315,3]
[350984153,1738266657770,-500.0,0.00019315,3]
[350984154,1738266657781,-983.72,0.00019315,3]
[350984155,1738266657791,-927.88,0.00019315,3]
[350984156,1738266657800,-500.0,0.00019315,3]
[350984157,1738266657810,-507.39123205,0.00019315,3]
[350984158,1738266657819,-500.0,0.00019315,3]
[350984159,1738266657829,-500.0,0.00019315,3]
[350984160,1738266657840,-2135.0,0.00019315,3]
[350984161,1738266657850,-4700.93,0.00019315,3]
[350984162,1738266657861,-1536.28,0.00019315,3]
[350984163,1738266657871,-500.0,0.00019315,3]
[350984164,1738266657882,-6261.33,0.00019315,3]
[350984165,1738266657892,-500.0,0.00019315,3]
[350984166,1738266657901,-884.23,0.00019315,2]
[350984167,1738266657910,-500.0,0.00019315,3]
[350984168,1738266657920,-834.84,0.00019315,3]
[350984169,1738266657930,-1744.31,0.00019315,3]
[350984170,1738266657939,-3530.99,0.00019315,3]
[350984171,1738266657949,-500.0,0.00019315,3]
[350984172,1738266657958,-500.0,0.00019315,3]
[350984173,1738266657968,-1433.01,0.00019315,3]
[350984174,1738266657978,-500.0,0.00019315,3]
[350984175,1738266657988,-1786.99,0.00019315,3]
[350984176,1738266657997,-500.0,0.00019315,3]
[350984177,1738266658007,-2890.57,0.00019315,3]
[350984178,1738266658017,-923.18,0.00019315,3]
[350984179,1738266658026,-500.0,0.00019315,3]
[350984180,1738266658036,-500.0,0.00019315,3]
[350984181,1738266658046,-500.0,0.00019315,3]
[350984182,1738266658056,-500.0,0.00019315,3]
[350984183,1738266658065,-3993.63,0.00019315,3]
[350984184,1738266658075,-1136.13,0.00019315,3]
[350984185,1738266658084,-2223.45,0.00019315,3]
[350984186,1738266658094,-500.0,0.00019315,3]
[350984187,1738266658103,-13683.94,0.00019315,3]
[350984188,1738266658113,-1314.61,0.00019315,3]
[350984189,1738266658123,-500.0,0.00019315,3]
[350984190,1738266658132,-1290.7,0.00019315,3]
[350984191,1738266658141,-5687.4,0.00019315,3]
[350984192,1738266658151,-500.0,0.00019315,3]
[350984193,1738266658160,-559.31127614,0.00019315,3]
[350984194,1738266658171,-839.34,0.00019315,3]
[350984195,1738266658180,-1504.87,0.00019315,3]
[350984196,1738266658191,-1336.48,0.00019315,3]
[350984197,1738266658200,-500.0,0.00019315,3]
[350984198,1738266658211,-500.0,0.00019315,3]
[350984199,1738266658220,-500.0,0.00019315,3]
[350984200,1738266658229,-817.64,0.00019315,3]
[350984201,1738266658240,-500.0,0.00019315,3]
[350984202,1738266658249,-1370.0,0.00019315,3]
[350984203,1738266658259,-500.0,0.00019315,3]
[350984204,1738266658268,-500.0,0.00019315,3]
[350984205,1738266658279,-6988.52,0.00019315,3]
[350984206,1738266658289,-1708.51,0.00019315,3]
[350984207,1738266658299,-594.2,0.00019315,3]
[350984208,1738266658308,-1120.0,0.00019315,3]
[350984209,1738266658318,-500.0,0.00019315,3]
[350984210,1738266658329,-3698.54,0.00019315,3]
[350984211,1738266658341,-1159.74,0.00019315,3]
[350984212,1738266658351,-4197.58,0.00019315,3]
[350984213,1738266658360,-500.0,0.00019315,3]
[350984214,1738266658369,-500.0,0.00019315,3]
[350984215,1738266658379,-7290.41,0.00019315,3]
[350984216,1738266658394,-525.52,0.00019315,3]
[350984217,1738266658404,-1721.31,0.00019315,3]
[350984218,1738266658415,-500.0,0.00019315,3]
[350984219,1738266658425,-520.02,0.00019315,3]
[350984220,1738266658435,-1120.07,0.00019315,3]
[350984221,1738266658444,-500.0,0.00019315,3]
[350984222,1738266658454,-999.73,0.00019315,3]
[350984223,1738266658463,-2097.11,0.00019315,3]
[350984224,1738266658473,-500.0,0.00019315,3]
[350984225,1738266658483,-867.76,0.00019315,3]
[350984226,1738266658492,-500.0,0.00019315,3]
[350984227,1738266658502,-500.0,0.00019315,3]
[350984228,1738266658512,-575.41,0.00019315,3]
[350984229,1738266658521,-500.0,0.00019315,3]
[350984230,1738266658532,-595.07,0.00019315,3]
[350984231,1738266658542,-500.0,0.00019315,3]
[350984232,1738266658552,-500.0,0.00019315,3]
[350984233,1738266658562,-922.11,0.00019315,3]
[350984234,1738266658571,-942.5,0.00019315,3]
[350984235,1738266658582,-500.0,0.00019315,3]
[350984236,1738266658592,-748.06,0.00019315,3]
[350984237,1738266658601,-511.58,0.00019315,3]
[350984238,1738266658611,-829.7,0.00019315,3]
[350984239,1738266658620,-2988.73,0.00019315,3]
[350984240,1738266658630,-1620.67,0.00019315,3]
[350984241,1738266658639,-500.0,0.00019315,3]
[350984242,1738266658649,-966.06,0.00019315,3]
[350984243,1738266658658,-1230.08,0.00019315,3]
[350984244,1738266658668,-500.0,0.00019315,3]
[350984245,1738266658678,-1689.7,0.00019315,3]
[350984246,1738266658688,-500.0,0.00019315,3]
[350984247,1738266658697,-779.42,0.00019315,3]
[350984248,1738266658707,-1077.44,0.00019315,3]
[350984249,1738266658717,-812.51,0.00019315,3]
[350984250,1738266658727,-219.54014812,0.00019315,3]
[350984251,1738266658736,-1945.9,0.00019315,3]
[350984252,1738266658746,-1874.29,0.00019315,3]
[350984253,1738266658755,-654.74,0.00019315,3]
[350984254,1738266658765,-500.0,0.00019315,3]
[350984255,1738266658775,-500.0,0.00019315,3]
[350984256,1738266658784,-500.0,0.00019315,3]
[350984257,1738266658794,-1018.91,0.00019315,3]
[350984258,1738266658803,-500.18,0.00019315,3]
[350984259,1738266658814,-2632.98,0.00019315,3]
[350984260,1738266658824,-1108.28,0.00019315,3]
[350984261,1738266658833,-1060.89,0.00019315,3]
[350984262,1738266658842,-500.0,0.00019315,3]
[350984263,1738266658852,-963.52,0.00019315,3]
[350984264,1738266658863,-1619.57,0.00019315,3]
[350984265,1738266658872,-494.0,0.00019315,3]
[350984266,1738266658882,-3423.43,0.00019315,3]
[350984267,1738266658892,-5064.53,0.00019315,3]
[350984268,1738266658903,-500.0,0.00019315,3]
[350984269,1738266658913,-500.0,0.00019315,3]
[350984270,1738266658922,-500.0,0.00019315,3]
[350984271,1738266658932,-500.0,0.00019315,3]
[350984272,1738266658941,-500.0,0.00019315,3]
[350984273,1738266658950,-500.0,0.00019315,3]
[350984274,1738266658960,-535.26,0.00019315,3]
[350984275,1738266658970,-3470.15,0.00019315,3]
[350984276,1738266658980,-420.79830615,0.00019315,3]
[350984277,1738266658989,-1575.15,0.00019315,3]
[350984278,1738266658999,-2829.86,0.00019315,3]
[350984279,1738266659008,-800.67,0.00019315,3]
[350984280,1738266659018,-500.0,0.00019315,3]
[350984281,1738266659027,-903.95,0.00019315,3]
[350984282,1738266659037,-1280.27,0.00019315,3]
[350984283,1738266659047,-500.0,0.00019315,3]
[350984284,1738266659057,-500.0,0.00019315,3]
[350984285,1738266659067,-773.41,0.00019315,3]
[350984286,1738266659076,-500.0,0.00019315,3]
[350984287,1738266659086,-500.0,0.00019315,3]
[350984288,1738266659095,-158.59456633,0.00019315,3]
[350984289,1738266659104,-500.0,0.00019315,3]
[350984290,1738266659113,-1159.86,0.00019315,3]
[350984291,1738266659123,-500.0,0.00019315,3]
[350984292,1738266659133,-2710.33,0.00019315,3]
[350984293,1738266659143,-500.0,0.00019315,3]
[350984294,1738266659152,-500.0,0.00019315,3]
[350984295,1738266659161,-1441.24,0.00019315,3]
[350984296,1738266659171,-1143.27,0.00019315,3]
[350984297,1738266659180,-500.0,0.00019315,3]
[350984298,1738266659190,-524.1350053,0.00019315,3]
[350984299,1738266659200,-500.0,0.00019315,3]
[350984300,1738266659209,-500.0,0.00019315,3]
[350984301,1738266659220,-500.0,0.00019315,3]
[350984302,1738266659229,-544.0,0.00019315,3]
[350984303,1738266659239,-424.921278,0.00019315,2]
[350984304,1738266659249,-500.0,0.00019315,3]
[350984305,1738266659258,-424.921278,0.00019315,2]
[350984306,1738266659268,-500.0,0.00019315,3]
[350984307,1738266659278,-500.0,0.00019315,3]
[350984308,1738266659288,-2117.88,0.00019315,3]
[350984309,1738266659297,-151.0,0.00019315,2]
[350984310,1738266659307,-151.0,0.00019315,2]
[350984311,1738266659316,-500.0,0.00019315,3]
[350984312,1738266659326,-424.921278,0.00019315,2]
[350984313,1738266659337,-500.0,0.00019315,3]
[350984314,1738266659348,-424.921278,0.00019315,2]
[350984315,1738266659358,-853.27,0.00019315,3]
[350984316,1738266659367,-500.0,0.00019315,3]
[350984317,1738266659377,-151.0,0.00019315,2]
[350984318,1738266659388,-151.0,0.00019315,2]
[350984319,1738266659397,-645.29,0.00019315,3]
[350984320,1738266659407,-1141.01,0.00019315,3]
[350984321,1738266659417,-500.0,0.00019315,3]
[350984322,1738266659427,-500.0,0.00019315,3]
[350984323,1738266659437,-1549.25,0.00019315,3]
[350984324,1738266659446,-3980.74,0.00019315,3]
[350984325,1738266659456,-500.0,0.00019315,3]
[350984326,1738266659466,-678.59,0.00019315,3]
[350984327,1738266659475,-500.0,0.00019315,3]
[350984328,1738266659485,-669.65,0.00019315,3]
[350984329,1738266659494,-500.0,0.00019315,3]
[350984330,1738266659503,-500.0,0.00019315,3]
[350984331,1738266659513,-500.0,0.00019315,3]
[350984332,1738266659522,-500.0,0.00019315,3]
[350984333,1738266659531,-500.0,0.00019315,3]
[350984334,1738266659541,-500.0,0.00019315,3]
[350984335,1738266659551,-152.844567,0.00019315,2]
[350984336,1738266659560,-2498.31,0.00019315,3]
[350984337,1738266659570,-1254.88,0.00019315,3]
[350984338,1738266659579,-500.0,0.00019315,3]
[350984339,1738266659589,-907.68,0.00019315,3]
[350984340,1738266659598,-500.0,0.00019315,3]
[350984341,1738266659607,-1213.95,0.00019315,3]
[350984342,1738266659617,-2944.98,0.00019315,3]
[350984343,1738266659626,-546.19379204,0.00019315,3]
[350984344,1738266659635,-727.44,0.00019315,3]
[350984345,1738266659645,-751.77,0.00019315,3]
[350984346,1738266659654,-500.0,0.00019315,3]
[350984347,1738266659665,-841.15,0.00019315,3]
[350984348,1738266659675,-1004.89,0.00019315,3]
[350984349,1738266659684,-500.0,0.00019315,3]
[350984350,1738266659693,-500.0,0.00019315,3]
[350984351,1738266659702,-1504.9,0.00019315,3]
[350984352,1738266659712,-3385.85,0.00019315,3]
[350984353,1738266659721,-500.57,0.00019315,3]
[350984354,1738266659730,-2001.58,0.00019315,3]
[350984355,1738266659739,-3468.58,0.00019315,3]
[350984356,1738266659749,-823.44,0.00019315,3]
[350984357,1738266659758,-1253.61,0.00019315,3]
[350984358,1738266659767,-500.0,0.00019315,3]
[350984359,1738266659777,-1772.07,0.00019315,3]
[350984360,1738266659786,-944.61,0.00019315,3]
[350984361,1738266659796,-2322.18,0.00019315,3]
[350984362,1738266659805,-2011.04,0.00019315,3]
[350984363,1738266659815,-892.96,0.00019315,3]
[350984364,1738266659824,-1826.98,0.00019315,3]
[350984365,1738266659834,-500.0,0.00019315,3]
[350984366,1738266659843,-151.0,0.00019315,2]
[350984367,1738266659853,-500.0,0.00019315,3]
[350984368,1738266659862,-151.0,0.00019315,2]
[350984369,1738266659873,-1352.88,0.00019315,3]
[350984370,1738266659882,-500.0,0.00019315,3]
[350984371,1738266659892,-1343.62,0.00019315,3]
[350984372,1738266659902,-500.0,0.00019315,3]
[350984373,1738266659911,-193.87041096,0.00019318,2]
[350984374,1738266659921,-17468.53778008,0.0001932,2]
[350984375,1738266659931,-151.51498751,0.00019352,2]
[350984376,1738266659940,-17468.53778008,0.00019352,2]
[350984377,1738266659949,-169.39636401,0.00019367,2]
[350984378,1738266659959,-500.0,0.00019373,2]
[350984379,1738266659969,-500.86941304,0.00019373,2]
[350984380,1738266659978,-548.52,0.00019399,2]
[350984381,1738266659988,-500.0,0.00019399,3]
[350984382,1738266659997,-500.0,0.00019399,3]
[350984383,1738266660007,-500.0,0.00019399,3]
[350984384,1738266660017,-300.0,0.00019399,2]
[350984385,1738266660026,-5803.71,0.00019399,3]
[350984386,1738266660035,-5803.71,0.00019399,3]
[350984387,1738266660045,-5803.71,0.00019399,3]
[350984388,1738266660054,-5803.71,0.00019399,3]
[350984389,1738266660064,-5803.71,0.00019399,3]
[350984390,1738266660073,-5803.71,0.00019399,3]
[350984391,1738266660082,-5803.71,0.00019399,3]
[350984392,1738266660092,-5803.71,0.00019399,3]
[350984393,1738266660101,-5803.71,0.00019399,3]
[350984394,1738266660109,-5803.71,0.00019399,3]
[350984395,1738266660119,-5803.71,0.00019399,3]
[350984396,1738266660130,-1312938.3920055,0.000194,2]
[350984397,1738266660846,-768.468532,0.000194,2]
[350984398,1738266660858,-326.92,0.000194,2]
[350984399,1738266661310,-500.0,0.00019178,2]
[350984400,1738266661321,-1611.0,0.000194,2]
[350984401,1738266661337,-6229.61620871,0.000194,2]
[350984402,1738266661357,-6720.02557286,0.000194,2]
[350984403,1738266662376,-264.1320831,0.00019178,2]
[350984404,1738266922917,360.013104,0.00023,120]
[350984443,1738267831741,-317.33,0.00016378,2]
[350984444,1738267831751,-1628.22950178,0.00017876,2]
[350984445,1738267831790,-329.7,0.00017876,2]
[350984446,1738267831801,-614.72573488,0.00017876,2]
[350984447,1738267831814,-10793.88476334,0.00017876,2]
[350984448,1738267831823,-150.0,0.00018016,2]
[350984449,1738267831832,-800.0,0.00018068,2]
[350984450,1738267831842,-386.25,0.00018111,30]
[350984451,1738267831851,-1173.2185088,0.00018111,2]
[350984452,1738267831860,-590.62,0.00018143,2]
[350984453,1738267831869,-150.0,0.0001817,2]
[350984454,1738267831878,-2327.01,0.00018193,2]
[350984455,1738267832209,-175.95,0.00018254,2]
[350984457,1738267832242,-1000.0,0.00018269,2]
[350984458,1738267832252,-282.84,0.00018296,2]
[350984459,1738267832263,-241.73,0.0001835,2]
[350984460,1738267832272,-1100.0,0.000185,6]
[350984462,1738267832282,-2300.0,0.000186,6]
[350984464,1738267832291,-317.33,0.00018642,2]
[350984465,1738267832306,-3500.0,0.000187,6]
[350984466,1738267832317,-4700.0,0.000188,6]
[350984467,1738267832329,-5900.0,0.000189,6]
[350984468,1738267832340,-17543.22794618,0.00019,3]
[350984469,1738267832350,-300.0,0.00019023,2]
[350984470,1738267832361,-793.5007,0.00019024,2]
[350984471,1738267832372,-1564.125,0.00019024,2]
[350984473,1738267832382,-2428.3879,0.00019024,2]
[350984475,1738267832391,-166.31838758,0.00019077,2]
[350984477,1738267832401,-163.04738686,0.00019078,2]
[350984479,1738267832410,-437.913,0.00019078,2]
[350984482,1738267832420,-158.94068353,0.00019078,2]
[350984484,1738267832430,-152.17950909,0.00019078,2]